Cogmind - Beta 10.2 @@@ ROGUE MODE // 2020.11.03 @ 15:38:32 // Halloween2020/ForbiddenLore Player: blelm Result: Self-destructed Performance ------------- Evolutions (0) 0 Regions Visited (4) 800 Robots Destroyed (30) 150 Value Destroyed (453) 453 Prototype IDs (23) 460 Alien Tech Used (0) 0 Bonus (392) 392 TOTAL SCORE: 2255 Bonus ------- Follower Combat Kills 92 Aligned with FarCom 300 Cogmind --------- Core Integrity 65/250 Matter 282/300 Energy 140/250 System Corruption 0% Temperature Cool (40) Movement Walking (150) Ox1 Location -9/Mines Parts ------- > --- POWER (1) -------- Ion Engine > --- PROPULSION (2) --- Aluminum Leg Aluminum Leg > --- UTILITY (2) ------ Large Storage Unit Large Storage Unit > --- WEAPON (2) ------- Light Assault Rifle > --- INVENTORY (16) --- Medium Storage Unit Large Storage Unit Cloak of Protection Hacking Suite Sensor Drone Bay Heavy Hammer Peak State ------------ > --- POWER ------------ Light Nuclear Core > --- PROPULSION ------- Aluminum Leg Aluminum Leg > --- UTILITY ---------- Large Storage Unit Large Storage Unit > --- WEAPON ----------- Light Assault Rifle Heavy Hammer > --- INVENTORY -------- Ion Engine Medium Storage Unit Large Storage Unit Cloak of Protection Hacking Suite Sensor Drone Bay Light Assault Rifle [Rating: 12] Favorites ----------- Power Light Ion Engine Engine Light Ion Engine Power Core Light Nuclear Core Propulsion Light Treads Treads Light Treads Leg Aluminum Leg Utility Large Storage Unit Storage Large Storage Unit Weapon Assault Rifle Energy Gun EM Pulse Gun Ballistic Gun Assault Rifle Impact Weapon Heavy Hammer Build | -11 -10 -10 -10 -9 ------- Run | Scr Mat Min Exi Min Slots Evolved . | . . . . . Power . | . . . . . Propulsion . | . . . . . Utility . | . . . . . Weapon . | . . . . . Parts Attached 19 | 4 4 9 . 2 Power 3 | . 1 1 . 1 Engine 2 | . 1 . . 1 Core 1 | . . 1 . . Reactor . | . . . . . Propulsion 4 | 2 . 2 . . Treads 2 | 2 . . . . Leg 2 | . . 2 . . Wheel . | . . . . . Hover . | . . . . . Flight . | . . . . . Utility 4 | 1 3 . . . Device . | . . . . . Storage 4 | 1 3 . . . Processor . | . . . . . Hackware . | . . . . . Protection . | . . . . . Artifact . | . . . . . Weapon 8 | 1 . 6 . 1 Energy Gun 1 | . . 1 . . Energy Cannon . | . . . . . Ballistic Gun 5 | 1 . 3 . 1 Ballistic Cannon . | . . . . . Launcher . | . . . . . Special Weapon . | . . . . . Impact Weapon 2 | . . 2 . . Slashing Weapon . | . . . . . Piercing Weapon . | . . . . . Special Melee Weapon . | . . . . . Unidentified Prototypes . | . . . . . Parts Lost 7 | . . 5 . 2 Power 1 | . . . . 1 Propulsion 2 | . . 2 . . Utility . | . . . . . Weapon 4 | . . 3 . 1 Highest Loss Streak 3 | . . 3 . 2 Average Slot Usage (%) 98 | . 100 95 100 98 Engine 7 | . 14 5 . 1 Core 6 | . . 8 14 12 Treads 18 | . 28 22 . . Leg 8 | . . 1 28 28 Storage 28 | . 28 28 28 28 Energy Gun 1 | . . 4 . . Ballistic Gun 22 | . 28 22 14 22 Impact Weapon 3 | . . 1 14 4 Naked Turns . | . . . . . Heaviest Build 41 | 15 39 41 41 41 Greatest Support 40 | 40 40 40 20 20 Greatest Overweight (x) 2 | . . 2 2 2 Average Overweight (x) . | . . . 2 1 Largest Inventory Capacity 16 | 8 16 16 16 16 Average Capacity 14 | 7 13 16 16 16 Most Carried 10 | 6 9 10 7 7 Average Carried 7 | 2 6 8 6 6 Final Capacity 16 | 8 16 16 16 16 Final Carried 9 | 3 9 6 7 6 Class Distribution -------------------- 100% | Mutant Dominant Class ---------------- Mutant | -10/Materials Mutant | -10/Mines Mutant | -10/Exiles Mutant | -9/Mines Resources | -11 -10 -10 -10 -9 ----------- Run | Scr Mat Min Exi Min Matter Collected 693 | 239 242 177 35 . Remotely . | . . . . . Salvage Created 610 | 62 325 214 . 9 Parts 58 | 1 39 18 . . Haulers Intercepted . | . . . . . Recyclers Shooed 3 | 1 1 1 . . Parts Field Recycled . | . . . . . Retrieved Matter . | . . . . . Parts Self-Destructed . | . . . . . Prevented . | . . . . . Kills | -11 -10 -10 -10 -9 ------- Run | Scr Mat Min Exi Min Combat Hostiles Destroyed 21 | . 10 10 . 1 Guns 20 | . 10 9 . 1 AOE 1 | . . 1 . . Classes Destroyed 8 | 1 6 1 . . Worker 2 | . 1 1 . . Tunneler 2 | . 1 1 . . Recycler 1 | 1 . . . . Operator 2 | . 2 . . . Watcher 2 | . 2 . . . Swarmer 13 | . 6 7 . . Grunt 6 | . 4 2 . . Assembled 2 | . . 1 . 1 Best Kill Streak 3 | 1 3 3 . 1 Combat Bots Only 3 | . 3 3 . 1 Max Kills in Single Turn 2 | 1 2 2 . 1 Gunslinging 1 | . . 1 . . Exploded 1 | . . 1 . . Melee . | . . . . . Uniques/NPCs Destroyed . | . . . . . Combat | -11 -10 -10 -10 -9 -------- Run | Scr Mat Min Exi Min Damage Taken 1200 | . 357 485 . 358 Core 185 | . 54 76 . 55 Absorbed by Shields . | . . . . . Core Remaining (%) 100 | 100 . . . . Volleys Fired 77 | 3 38 32 . 4 Largest 2 | 2 2 2 . 2 Hottest 60 | 60 40 60 . 40 Shots Fired 147 | 6 76 57 . 8 Gun 147 | 6 76 57 . 8 Cannon . | . . . . . Launcher . | . . . . . Special . | . . . . . Kinetic 134 | 3 76 47 . 8 Thermal 3 | 3 . . . . Explosive . | . . . . . Electromagnetic 10 | . . 10 . . Robot Hit Streak 10 | 5 9 10 . 4 Robot Miss Streak 3 | . 3 2 . 2 Penetration Max . | . . . . . Secondary Targets 2 | . . 2 . . Max Gunslinging Chain 1 | . . 1 . . Shots Hit Robots 94 | 5 45 39 . 5 Core Hits 42 | 2 21 16 . 3 Critical Hits 3 | . 2 1 . . Critical Kills 2 | . 1 1 . . Critical Parts Destroyed 1 | . 1 . . . Melee Attacks 10 | . . 10 . . Impact 10 | . . 10 . . Slashing . | . . . . . Piercing . | . . . . . Sneak Attacks . | . . . . . Combat Hostiles . | . . . . . Follow-up Attacks . | . . . . . Damage Inflicted 1230 | 63 577 551 . 39 Guns 1127 | 63 549 476 . 39 Cannons . | . . . . . Explosions 68 | . . 68 . . Melee . | . . . . . Ramming 35 | . 28 7 . . Kinetic 990 | 42 549 360 . 39 Thermal 89 | 21 . 68 . . Explosive . | . . . . . Electromagnetic 116 | . . 116 . . Impact . | . . . . . Slashing . | . . . . . Piercing . | . . . . . Highest Corruption . | . . . . . Average Corruption . | . . . . . Corruption Purged . | . . . . . Overload Shots . | . . . . . Overflow Damage 29 | . . 29 . . Projectiles . | . . . . . Explosions 29 | . . 29 . . Melee . | . . . . . Knockbacks 1 | . 1 . . . Impact 1 | . 1 . . . Kinetic . | . . . . . Secondary . | . . . . . Self-Inflicted Damage 34 | . . 34 . . Shots 1 | . . 1 . . Rammed 4 | . 3 1 . . Targets Rammed 7 | . 4 3 . . Kicked . | . . . . . Crushed 3 | . 1 2 . . Highest Temperature 60 | . . 48 . 60 Average Temperature 12 | . . 12 . 15 Received Heat Transfer 312 | . 108 84 . 120 Siege Activations . | . . . . . Robots Corrupted . | . . . . . Combat Hostiles . | . . . . . Parts Fried . | . . . . . Impact Corruptions . | . . . . . Robots Melted . | . . . . . Combat Hostiles . | . . . . . Parts Melted . | . . . . . Heat Transferred 150 | 50 . 100 . . Parts Sabotaged . | . . . . . Parts Stolen . | . . . . . Parts Stripped . | . . . . . Power Chain Reactions 1 | . . 1 . . Missiles Intercepted . | . . . . . Alert | -11 -10 -10 -10 -9 ------- Run | Scr Mat Min Exi Min Peak Influence 282 | 5 269 282 . . Initial 75 | . 3 75 . . Average 152 | 3 169 167 . . Maximum Alert Level 1 | . 1 1 . . Low Security (%) 71 | 100 63 73 . 100 Level 1 28 | . 36 26 . . Level 2 . | . . . . . Level 3 . | . . . . . Level 4 . | . . . . . Level 5 . | . . . . . High Security . | . . . . . Max Security . | . . . . . Squads Dispatched 5 | . 4 1 . . Investigation 1 | . 1 . . . Extermination . | . . . . . Reinforcement 3 | . 3 . . . Assault 1 | . . 1 . . Garrison . | . . . . . Intercept . | . . . . . Construction Impeded . | . . . . . Haulers Reinforced . | . . . . . Stealth | -11 -10 -10 -10 -9 --------- Run | Scr Mat Min Exi Min Distress Signals 1 | . . . . 1 Communications Jammed . | . . . . . Distress Signals . | . . . . . Times Spotted 46 | . 19 18 . 9 Peak Tracking Total 10 | . 3 4 . 10 Tactical Retreats 2 | . 1 1 . . Traps | -11 -10 -10 -10 -9 ------- Run | Scr Mat Min Exi Min Traps Triggered 1 | . 1 . . . Indirectly . | . . . . . Trap Hack Attempts . | . . . . . Triggered . | . . . . . Disarmed . | . . . . . Reprogrammed . | . . . . . Reused . | . . . . . Traps Extracted . | . . . . . Installed . | . . . . . Triggered . | . . . . . Machines | -11 -10 -10 -10 -9 ---------- Run | Scr Mat Min Exi Min Machines Disabled 2 | . 1 1 . . Max in Single Turn 1 | . 1 1 . . Machines Sabotaged . | . . . . . Garrisons Compromised . | . . . . . Overloaded Fab Kills . | . . . . . Fab Network Shutdowns . | . . . . . Hacking | -11 -10 -10 -10 -9 --------- Run | Scr Mat Min Exi Min Machines Accessed 6 | . 3 1 2 . Terminals 3 | . 3 . . . Fabricators . | . . . . . Repair Stations . | . . . . . Recycling Units . | . . . . . Scanalyzers . | . . . . . Garrison Access . | . . . . . Total Hacks 12 | . 9 1 2 . Successful 6 | . 3 1 2 . Failed 6 | . 6 . . . Catastrophic . | . . . . . Database Lockouts . | . . . . . Manual 8 | . 7 . 1 . Terminals 9 | . 9 . . . Fabricators . | . . . . . Repair Stations . | . . . . . Recycling Units . | . . . . . Scanalyzers . | . . . . . Garrison Access . | . . . . . Terminal Hacks 5 | . 2 1 2 . Record 1 | . . . 1 . Robot Analysis 1 | . 1 . . . Open Door 1 | . . 1 . . Hauler Manifests 1 | . 1 . . . EX-Prototype ID Bank 1 | . . . 1 . Fabricator Hacks . | . . . . . Repair Station Hacks . | . . . . . Recycling Unit Hacks . | . . . . . Scanalyzer . | . . . . . Garrison Access Hacks . | . . . . . Unauthorized Hacks 1 | . 1 . . . Terminals 1 | . 1 . . . Botnet 1 | . 1 . . . Fabricators . | . . . . . Repair Stations . | . . . . . Recycling Units . | . . . . . Scanalyzers . | . . . . . Garrison Access . | . . . . . Data Cores Recovered . | . . . . . Used . | . . . . . Hacking Detections 3 | . 3 . . . Full Trace Events . | . . . . . Feedback Events . | . . . . . Feedback Blocked . | . . . . . Robot Schematics Acquired . | . . . . . Robots Built . | . . . . . Matter . | . . . . . Time . | . . . . . Total Robot Build Rating . | . . . . . Part Schematics Acquired . | . . . . . Parts Built . | . . . . . Matter . | . . . . . Time . | . . . . . Total Part Build Rating . | . . . . . Parts Repaired . | . . . . . Time . | . . . . . Parts Recycled . | . . . . . Recycled Matter . | . . . . . Retrieved Matter . | . . . . . Retrieved Components . | . . . . . Parts Scanalyzed . | . . . . . Part Schematics Acquired . | . . . . . Parts Damaged . | . . . . . Bothacking | -11 -10 -10 -10 -9 ------------ Run | Scr Mat Min Exi Min Used RIF Installer . | . . . . . Robots Hacked . | . . . . . Non-combat . | . . . . . Combat . | . . . . . Robot Hacks Applied . | . . . . . Relay Couplers Released . | . . . . . Robots Rewired . | . . . . . Allies Hacked . | . . . . . Hacks Repelled . | . . . . . Allies | -11 -10 -10 -10 -9 -------- Run | Scr Mat Min Exi Min Total Allies 3 | . . 3 . . Largest Group 2 | . . 2 . . Highest-Rated Group 43 | . . 43 . . Highest-Rated Ally 31 | . . 31 . . Total Orders . | . . . . . Ally Attacks 7 | . . 7 . . Total Damage 126 | . . 126 . . Kills 4 | . . 4 . . Allies Corrupted . | . . . . . Allies Melted . | . . . . . Intel | -11 -10 -10 -10 -9 ------- Run | Scr Mat Min Exi Min Robot Analysis Total 1 | . 1 . . . Derelict Logs Recovered . | . . . . . Drone Launches . | . . . . . Drone Recoveries . | . . . . . Exploration | -11 -10 -10 -10 -9 ------------- Run | Scr Mat Min Exi Min Turns Passed 2189 | 46 785 759 478 121 Spaces Moved 1086 | 18 394 340 266 68 Core . | . . . . . Treads 743 | 18 394 331 . . Legs 343 | . . 9 266 68 Wheels . | . . . . . Hover . | . . . . . Flight . | . . . . . Fastest Speed 150 | 160 160 150 180 150 Average Speed 168 | 160 160 172 180 157 Slowest Speed 200 | 160 160 200 180 180 Overloaded Moves . | . . . . . Propulsion Burnouts . | . . . . . Robots Hopped . | . . . . . Cave-ins Triggered . | . . . . . Exploration Rate (%) 44 | 3 65 63 65 24 Regions Visited 4 Branch Regions 3 Pre-discovered Areas 1 | . . . 1 . Known Exits Taken . | . . . . . Unknown Exits Taken 4 | 1 1 1 1 . Scrap Searched 1 | . . 1 . . Spaces Dug 2 | . . 2 . . Terrain Destroyed 10 | . . 10 . . Melee 2 | . . 2 . . Projectile . | . . . . . AOE 8 | . . 8 . . Terrain Rammed . | . . . . . Walls Destroyed . | . . . . . Machines Disabled . | . . . . . Actions | -11 -10 -10 -10 -9 --------- Run | Scr Mat Min Exi Min Total 1276 | 31 470 435 266 74 Wait 61 | . 21 40 . . Move 1082 | 17 393 339 265 68 Hop . | . . . . . Pick Up 10 | 2 6 1 1 . Fast Attach 4 | 1 1 2 . . Attach 8 | 3 . 4 . 1 Detach . | . . . . . Swap 7 | . 3 3 . 1 Drop 10 | 5 4 1 . . Fire 77 | 3 38 32 . 4 Melee 10 | . . 10 . . Ram . | . . . . . Kick . | . . . . . Crush 7 | . 4 3 . . Escape Stasis . | . . . . . Rewire . | . . . . . Trap . | . . . . . Miscellaneous . | . . . . . Route ------- -11/Scrapyard -10/Materials (discovered 3 exits: [*Mat x2] / *Min) -10/Mines (discovered 3 exits: [*Mat x2] / *Exi) -10/Exiles -9/Mines History --------- Turn | Location | Event 14 | -11/Scrapyard | Discovered new exit (range 3) 47 | -11/Scrapyard | Entered Materials 307 | -10/Materials | Build established: Mutant 396 | -10/Materials | Discovered new exit (range 6) 435 | -10/Materials | Discovered new exit (range 10) 626 | -10/Materials | Discovered new exit (range 13) 832 | -10/Materials | Entered Mines 836 | -10/Mines | Met a Derelict bent on vengeance 952 | -10/Mines | Found the Drone Emporium 963 | -10/Mines | Found Prototype Device 1199 | -10/Mines | Met a Derelict testing a Signal Generator 1324 | -10/Mines | Discovered new exit (range 9) 1370 | -10/Mines | Lost 3 parts (1n2w) 1399 | -10/Mines | Discovered new exit (range 6) 1460 | -10/Mines | Deemed a non-threat by the Exiles lab entrance 1462 | -10/Mines | Discovered new exit (range 5) 1520 | -10/Mines | Excavation squad dispatched 1520 | -10/Mines | A large section of the Mines collapsed 1552 | -10/Mines | Core integrity fell below 50% 1591 | -10/Mines | Entered Exiles 1635 | -10/Exiles | Met 8R-AWN 1662 | -10/Exiles | Met EX-HEX 1779 | -10/Exiles | Met EX-BIN 1804 | -10/Exiles | Aligned with FarCom system 1806 | -10/Exiles | Given EX-Vault access code 1849 | -10/Exiles | Opened EX-Vault 1861 | -10/Exiles | Found Cloak of Protection 1900 | -10/Exiles | Warned to stay clear of 0b10 Research branches 1958 | -10/Exiles | Met EX-DEC 1969 | -10/Exiles | Learned location of Zion (-7) 2053 | -10/Exiles | Discovered new exit (range 11) 2069 | -10/Exiles | Left Exiles lab with Cloak of Protection 2069 | -10/Exiles | Entered Mines 2148 | -9/Mines | Assembled infested the area 2153 | -9/Mines | Assisted by a Guerilla fighting off Assembled 2190 | -9/Mines | Self-destructed Last Messages --------------- 02069_ Receiving FarCom transmissions... 02070_ K-01 Serf collects debris. 02112_ T-07 Excavator is excavating. 02148_ ALERT: Infestation in the mines, dispatching Demolisher response squad. 02153_ A derelict emerges from the shadows: "You need to get out of here! I've been tracking a group of Assembled to figure out where they're coming from, and they're closing on this area, come on!" 02158_ 5U-RAS(h): "I'll hold them off! Go on ahead or try to find another way!" 02162_ 5U-RAS(h) system corrupted by crushing effect. 02163_ 5U-RAS(h) system terminally corrupted. 02167_ T-07 Excavator destroyed. 02168_ T-07 Excavator is excavating. 02170_ T-07 Excavator destroyed. 02181_ as-30426 destroyed. 02182_ Lgt. Nuclear Core destroyed. 02184_ Knocked back. 02188_ Lgt. Assault Rifle destroyed. 02188_ Knocked back. Map ----- +----------------------------------------------------+ | ??????????????????????????????????????????? | | ??????????????????????????????????????????? | | ??????????????????????????????????????????? | | ??????????????????????????????????????????? | | ????????????????????????????????#?????????? | | ?????????????????????????????? ?????????? | | ?????????????????????????????? ?????????? | | ?????????????????????????????? #?????????? | | ?????????????????????????????? #?????????? | | ????????????????????????????? #?????????? | | ????????????????????????????? ??????????? | | ????????????????????????????? ??????????? | | ????????????????????????????? #??????????? | | ????????????????????????????? #??????????? | | ????????????????????????????? #??????????? | | ????????????????????????????? #??????????? | | ???????????????############## #??????????? | | ???????????????# #??????????? | | ???????????????# ## ######## ###??????????? | | ?????????????### ## #??????# #????????????? | | ????????????## #??????# #????????????? | | ???????????## #??????# #????????????? | | ??????????## ##?????# #????????????? | | ??????????# ##??### ####?????????? | | ??????????## ##?# #?????????? | | ???????????### @ #?# #?????????? | | ????????????## #?# #?????????? | | ???????????## a #?# #?????????? | | ????????#### ##?# #?????????? | | ???????## a a #??########?????????? | | ??# ### aaa##a #???????????????????? | | ??# a ##? #???????????????????? | | ??# #?? #???????????????????? | | ??# ### #?? ##??????????????????? | | ????####?###### #?? #####??????????????? | | ??????????????# #? ##?????????????? | | ??????????????# ## ##????????????? | | ?????????????## #????????????? | | ????????????## ???????????? | | ????????????# ???????????? | | ????????????# = ???????????? | | ???????????## *%! ???????????? | | ???????##### ! """" ???????????? | | ??????# """%= ### ????????????? | | ??????# | """"= #???????????????? | | ??????## % ????????????????? | | ???????## #???????????????? | | ????????## ### ##???????????????? | | ?????????##### ###??####????????????????? | | ?????????????## #????????????????????????? | +----------------------------------------------------+ Best States ------------- Heat Dissipation 25 Energy Generation 14 Energy Capacity 250 Matter Stores 300 Matter Capacity 300 Sight Range 16 Terrain Scan Density 10 Evasion (%) 40 Recoil Reduction 2 Item Schematics ----------------- None Robot Schematics ------------------ None Fabricated ------------ Nothing Alien Tech Used ----------------- None Achievements -------------- None Challenges ------------ None Game ------ Seed HardenedHugeMultirail Manual? 0 Play Time 00:14:50 Cumulative 44.9 hours Start 2020.11.03 @ 15:06:06 End 2020.11.03 @ 15:38:32 Sessions 1 Manual Loads 0 Difficulty Rogue Special Mode Halloween2020/ForbiddenLore Game No. 36 Rogue 36 Adventurer 0 Explorer 0 Win Type - Total 0 Types 0/0/0/0/0/0/0/0/0 Lore% 21 Gallery% 29 Achievement% 26 Wizard Run 0 Options --------- ASCII 1 Keyboard 1 Movement Vi Keybinds 0 Fullscreen 1 Font 16/Terminus Map View 75x55 Tactical HUD 1 Map Filters NONE Filters NONE Steam 1 RUN: 21803461-ac4f-447d-9b3f-1abc8c39fb40